Cogmind - Beta 15 @@@ ROGUE MODE // 2025.10.16 @ 22:43:58 Player: PersmaticCoreSerial_K4E2 Result: Destroyed by as-29696 with Assembled Heavy Rifle Performance ------------- Evolutions (0) 0 Regions Visited (2) 400 Robots Destroyed (8) 40 Value Destroyed (205) 205 Prototype IDs (0) 0 Alien Tech Used (0) 0 Bonus (0) 0 TOTAL SCORE: 645 Bonus ------- None Cogmind --------- Core Integrity 0/250 Matter 300/300 Energy 248/250 System Corruption 0% Temperature Cool (1) Movement Walking (190) Ox1 Location -10/Mines Parts ------- > --- POWER (1) -------- Ion Engine > --- PROPULSION (2) --- Aluminum Leg > --- UTILITY (2) ------ Small Storage Unit > --- WEAPON (2) ------- Hammer > --- INVENTORY (8) ---- Light Treads Wheel Wheel Medium Storage Unit Medium Storage Unit Faulty Experimental Sensor Array Light Assault Rifle Peak State ------------ > --- POWER ------------ Ion Engine > --- PROPULSION ------- Aluminum Leg Aluminum Leg > --- UTILITY ---------- Small Storage Unit Targeting Computer > --- WEAPON ----------- Light Assault Rifle Hammer > --- INVENTORY -------- Light Treads Aluminum Leg Wheel Wheel Medium Storage Unit Medium Storage Unit Experimental Sensor Array [Rating: 8] Favorites ----------- Power Ion Engine Engine Ion Engine Propulsion Aluminum Leg Leg Aluminum Leg Utility Small Storage Unit Storage Small Storage Unit Processor Targeting Computer Protection Light Armor Plating Weapon Light Assault Rifle Energy Gun EM Pulse Gun Ballistic Gun Light Assault Rifle Special Weapon Mining Laser Impact Weapon Hammer Build | -11 -10 -10 ------- Run | Yrd Mat Min Slots Evolved . | . . . Power . | . . . Propulsion . | . . . Utility . | . . . Weapon . | . . . Parts Attached 13 | 5 4 4 Power 3 | . 2 1 Engine 3 | . 2 1 Core . | . . . Reactor . | . . . Propulsion 3 | 2 . 1 Treads . | . . . Leg 3 | 2 . 1 Wheel . | . . . Hover . | . . . Flight . | . . . Utility 3 | 1 1 1 Device . | . . . Storage 1 | 1 . . Processor 1 | . 1 . Hackware . | . . . Protection 1 | . . 1 Artifact . | . . . Weapon 4 | 2 1 1 Energy Gun 1 | 1 . . Energy Cannon . | . . . Ballistic Gun 1 | 1 . . Ballistic Cannon . | . . . Launcher . | . . . Special Weapon 1 | . . 1 Impact Weapon 1 | . 1 . Slashing Weapon . | . . . Piercing Weapon . | . . . Special Melee Weapon . | . . . Unidentified Prototypes . | . . . Parts Lost 5 | . 2 3 Power 1 | . 1 . Propulsion 1 | . . 1 Utility 1 | . . 1 Weapon 2 | . 1 1 Highest Loss Streak 3 | . 2 3 To Critical Strikes . | . . . Average Backups 7 | 4 7 6 Power . | 1 1 . Propulsion 3 | 2 3 3 Utility 1 | . 1 2 Weapon . | . . . Tool/Special . | . . . Unused Backups 8 | . 2 6 Power . | . . . Propulsion 4 | . 1 3 Utility 3 | . . 3 Weapon 1 | . 1 . Tool/Special . | . . . Average Slot Usage (%) 89 | . 87 95 Engine 11 | . 10 12 Leg 27 | . 27 27 Storage 14 | . 14 14 Processor 7 | . 5 11 Energy Gun 9 | . 12 . Ballistic Gun 13 | . 14 10 Impact Weapon 4 | . 1 14 Peak Build Rating 8 | 5 7 8 Average Rating 6 | 3 6 7 On Entrance 3 | . 5 6 Naked Turns . | . . . Heaviest Build 16 | 8 13 16 Greatest Support 20 | 20 20 20 Greatest Overweight (x) 1 | . . 1 Average Overweight (x) . | . . . Largest Inventory Capacity 8 | 8 8 8 Average Capacity 7 | 6 8 8 Most Carried 8 | 7 8 7 Average Carried 7 | 4 7 6 Final Capacity 8 | 8 8 8 Final Carried 7 | 7 7 7 Class Distribution -------------------- 100% | Mutant Dominant Class ---------------- Mutant | -10/Materials Mutant | -10/Mines Resources | -11 -10 -10 ----------- Run | Yrd Mat Min Matter Collected 368 | 220 58 90 Remotely . | . . . Salvage Created 243 | . 243 . Parts 19 | . 19 . Haulers Intercepted . | . . . Recyclers Shooed . | . . . Parts Field Recycled . | . . . Retrieved Matter . | . . . Parts Self-Destructed . | . . . Prevented . | . . . Kills | -11 -10 -10 ------- Run | Yrd Mat Min Combat Hostiles Destroyed 7 | . 7 . Guns 6 | . 6 . AOE 1 | . 1 . Classes Destroyed 3 | . 3 . Watcher 1 | . 1 . Swarmer 3 | . 3 . Grunt 4 | . 4 . Best Kill Streak 5 | . 5 . Combat Bots Only 4 | . 4 . Max Kills in Single Turn 1 | . 1 . Gunslinging . | . . . Exploded 1 | . 1 . Melee . | . . . Uniques/NPCs Destroyed . | . . . Combat | -11 -10 -10 -------- Run | Yrd Mat Min Hostile Shots Fired 105 | . 58 47 Missed 35 | . 17 18 Hits 70 | . 41 29 Projectile 70 | . 41 29 Damage Taken 922 | . 469 453 Core 256 | . 102 154 Absorbed by Shields . | . . . Regen/Repaired (Parts) 52 | . 52 . Core Remaining (%) 100 | 100 . . Volleys Fired 28 | . 28 . Largest 2 | . 2 . Hottest 60 | . 60 . Shots Fired 50 | . 50 . Gun 50 | . 50 . Cannon . | . . . Launcher . | . . . Special . | . . . Kinetic 28 | . 28 . Thermal . | . . . Explosive . | . . . Electromagnetic 22 | . 22 . Robot Hit Streak 12 | . 12 . Robot Miss Streak 5 | . 5 . Penetration Max . | . . . Secondary Targets 1 | . 1 . Max Gunslinging Chain 1 | . 1 . Shots Hit Robots 30 | . 28 2 Core Hits 13 | . 13 . Critical Kills . | . . . Critical Parts Destroyed . | . . . Critical Strikes . | . . . Melee Attacks 6 | . . 6 Impact 6 | . . 6 Slashing . | . . . Piercing . | . . . Sneak Attacks . | . . . Combat Hostiles . | . . . Follow-up Attacks . | . . . Damage Inflicted 433 | . 349 84 Guns 292 | . 292 . Cannons . | . . . Explosions 57 | . 57 . Melee 84 | . . 84 Ramming . | . . . Kinetic 117 | . 117 . Thermal 57 | . 57 . Explosive . | . . . Electromagnetic 175 | . 175 . Impact 84 | . . 84 Slashing . | . . . Piercing . | . . . Highest Corruption . | . . . Average Corruption . | . . . Corruption Purged . | . . . Corruption Blocked . | . . . Overload Shots . | . . . Overflow Damage . | . . . Projectiles . | . . . Explosions . | . . . Melee . | . . . Knockbacks 1 | . . 1 Impact 1 | . . 1 Kinetic . | . . . Secondary . | . . . Self-Inflicted Damage 53 | . 53 . Shots 1 | . 1 . Rammed . | . . . Targets Rammed . | . . . Kicked . | . . . Crushed . | . . . Highest Temperature 79 | . 79 . Average Temperature 22 | . 22 . Received Heat Transfer 150 | . 150 . Siege Activations . | . . . Martial Activations . | . . . Shielding Activations . | . . . Robots Disrupted . | . . . Combat Hostiles . | . . . Robots Corrupted . | . . . Combat Hostiles . | . . . Parts Fried . | . . . Impact Corruptions . | . . . Robots Melted . | . . . Combat Hostiles . | . . . Parts Melted . | . . . Heat Transferred 50 | . 50 . Parts Sabotaged . | . . . Parts Stolen . | . . . Parts Stripped . | . . . Power Chain Reactions 1 | . 1 . Alert | -11 -10 -10 ------- Run | Yrd Mat Min Maximum Alert Level . | . . . Low Security (%) 100 | 100 100 100 Level 1 . | . . . Level 2 . | . . . Level 3 . | . . . Level 4 . | . . . Level 5 . | . . . High Security . | . . . Max Security . | . . . Peak Influence 128 | . 128 46 Initial 46 | . . 46 Average 21 | . 26 12 Influence Increases 292 | . 292 . Destroy 0b10 Robot/C 140 | . 140 . Destroy 0b10 Robot/NC 5 | . 5 . Destroy Leader 32 | . 32 . Successful Hack 6 | . 6 . Disable Machine 15 | . 15 . Destroy Structure 4 | . 4 . Lose Combat Pursuer 90 | . 90 . Influence Decreases 292 | . 172 120 Entered New Map 74 | . . 74 Time Decay 198 | . 152 46 Lost Part 20 | . 20 . Squads Dispatched 3 | . 3 . Investigation . | . . . Extermination . | . . . Reinforcement 3 | . 3 . Assault . | . . . Garrison . | . . . Intercept . | . . . Searches Triggered . | . . . Construction Impeded . | . . . Haulers Reinforced . | . . . Active Scanning Responses . | . . . Cargo Convoy Interrupts . | . . . Stealth | -11 -10 -10 --------- Run | Yrd Mat Min Distress Signals 2 | . 2 . Communications Jammed . | . . . Distress Signals . | . . . Times Spotted 26 | . 20 6 Peak Tracking Total 6 | . 6 4 Tactical Retreats 3 | . 3 . Traps | -11 -10 -10 ------- Run | Yrd Mat Min Traps Triggered . | . . . Indirectly . | . . . Trap Hack Attempts . | . . . Triggered . | . . . Disarmed . | . . . Reprogrammed . | . . . Reused . | . . . Traps Extracted . | . . . Installed . | . . . Triggered . | . . . Machines | -11 -10 -10 ---------- Run | Yrd Mat Min Machines Disabled 1 | . 1 . Max in Single Turn 1 | . 1 . Machines Repaired . | . . . Machines Dismantled . | . . . Machines Sabotaged . | . . . Overloaded Fab Kills . | . . . Hacking | -11 -10 -10 --------- Run | Yrd Mat Min Machines Accessed 5 | . 5 . Terminals 3 | . 3 . Fabricators . | . . . Repair Stations 1 | . 1 . Recycling Units 1 | . 1 . Scanalyzers . | . . . Garrison Access . | . . . Total Hacks 14 | . 14 . Successful 10 | . 10 . Failed 4 | . 4 . Catastrophic . | . . . Database Lockouts . | . . . Manual . | . . . Terminals 9 | . 9 . Fabricators . | . . . Repair Stations 3 | . 3 . Recycling Units 2 | . 2 . Scanalyzers . | . . . Garrison Access . | . . . Terminal Hacks 7 | . 7 . Record 3 | . 3 . Emergency Access Points 1 | . 1 . Locate Traps 1 | . 1 . Dispatch Records 1 | . 1 . Maintenance Status 1 | . 1 . Fabricator Hacks . | . . . Repair Station Hacks 2 | . 2 . Scan Component 1 | . 1 . Repair 1 | . 1 . Recycling Unit Hacks 1 | . 1 . Report Inventory 1 | . 1 . Scanalyzer . | . . . Garrison Access Hacks . | . . . Unauthorized Hacks . | . . . Terminals . | . . . Fabricators . | . . . Repair Stations . | . . . Recycling Units . | . . . Scanalyzers . | . . . Garrison Access . | . . . Data Cores Recovered . | . . . Used . | . . . Hacking Detections 1 | . 1 . Full Trace Events . | . . . Feedback Events . | . . . Feedback Blocked . | . . . Robot Schematics Acquired . | . . . Robots Built . | . . . Authchips . | . . . Time . | . . . Total Robot Build Rating . | . . . Part Schematics Acquired . | . . . Parts Built . | . . . Authchips . | . . . Time . | . . . Total Part Build Rating . | . . . Parts Repaired 1 | . 1 . Time 26 | . 26 . Parts Recycled . | . . . Recycled Matter . | . . . Retrieved Matter . | . . . Retrieved Components . | . . . Parts Scanalyzed . | . . . Part Schematics Acquired . | . . . Parts Damaged . | . . . Bothacking | -11 -10 -10 ------------ Run | Yrd Mat Min Used RIF Installer . | . . . Robots Hacked . | . . . Non-combat . | . . . Combat . | . . . Robot Hacks Applied . | . . . Relay Couplers Released . | . . . Fabnet Peak Effective % . | . . . Robots Rewired . | . . . Allies Hacked . | . . . Hacks Repelled . | . . . Allies | -11 -10 -10 -------- Run | Yrd Mat Min Total Allies . | . . . Largest Group . | . . . Highest-Rated Group . | . . . Highest-Rated Ally . | . . . Total Orders . | . . . Ally Attacks . | . . . Total Damage . | . . . Kills . | . . . Allies Corrupted . | . . . Allies Melted . | . . . Intel | -11 -10 -10 ------- Run | Yrd Mat Min Active Infowar (turns) . | . . . Robot Analysis Total . | . . . Derelict Logs Recovered 1 | . . 1 Drone Launches . | . . . Drone Recoveries . | . . . Exploration | -11 -10 -10 ------------- Run | Yrd Mat Min Turns Passed 918 | 77 640 201 Spaces Moved 607 | 56 413 138 Core 6 | 6 . . Treads . | . . . Legs 601 | 50 413 138 Wheels . | . . . Hover . | . . . Flight . | . . . Fastest Speed 50 | 50 120 120 Average Speed 119 | 112 120 122 Slowest Speed 190 | 120 120 190 Overloaded Moves . | . . . Propulsion Burnouts . | . . . Robots Hopped . | . . . Potential Cave-ins . | . . . Cave-ins Triggered . | . . . Exploration Rate (%) 32 | 4 59 34 Regions Visited 2 Branch Regions 1 Pre-discovered Areas . | . . . Known Exits Taken . | . . . Unknown Exits Taken 2 | 1 1 . Scrap Searched 2 | . . 2 Spaces Dug . | . . . Terrain Destroyed 3 | . 3 . Melee . | . . . Projectile . | . . . AOE 3 | . 3 . Terrain Rammed . | . . . Walls Destroyed . | . . . Machines Disabled . | . . . Actions | -11 -10 -10 --------- Run | Yrd Mat Min Total 742 | 67 513 162 Wait 69 | . 61 8 Move 605 | 55 412 138 Hop . | . . . Pick Up 12 | 7 4 1 Fast Attach 10 | 5 3 2 Attach 4 | . 2 2 Detach 3 | . . 3 Swap 1 | . . 1 Drop 4 | . 3 1 Fire 28 | . 28 . Melee 6 | . . 6 Ram . | . . . Kick . | . . . Crush . | . . . Escape Stasis . | . . . Rewire . | . . . Trap . | . . . Miscellaneous . | . . . Route ------- -11/Scrapyard -10/Materials (discovered 4 exits: *Mat x2 / [*Min] / [*Sub]) -10/Mines (discovered 1 exit: *Mat) History --------- Turn | Location | Event 8 | -11/Scrapyard | Discovered new exit (range 16) 78 | -11/Scrapyard | Entered Materials 132 | -10/Materials | Discovered new exit (range 6) 300 | -10/Materials | Build established: Mutant 305 | -10/Materials | Discovered new exit (range 15) 353 | -10/Materials | Discovered new exit (range 5) 512 | -10/Materials | Discovered new exit (range 16) 609 | -10/Materials | Repaired Aluminum Leg 718 | -10/Materials | Entered Mines 749 | -10/Mines | Identified exit to Materials 831 | -10/Mines | Assembled infested the area 832 | -10/Mines | Found a damaged Exp. Sensor Array with a note attached 838 | -10/Mines | Found Prototype Device 862 | -10/Mines | Found DCF Scrap (13 items) 896 | -10/Mines | Core integrity fell below 50% 903 | -10/Mines | Core integrity fell below 20% 919 | -10/Mines | Destroyed by as-29696 with Assembled Heavy Rifle Last Messages --------------- 00862_ Found Welding Torch. 00862_ Found 178 Matter. A note is attached: "With love, from the DCF." 00863_ Acquired 19 matter. 00863_ Dropped Aluminum Leg. 00866_ Acquired Mining Laser. 00867_ Acquired 10 matter. 00870_ Discarded Targeting Computer. 00870_ Acquired Lgt. Armor Plating. 00872_ Acquired 10 matter. 00890_ Mining Laser destroyed. 00895_ K-01 Serf collects debris. 00901_ as-24944 knocked back. 00903_ K-01 Serf collects debris. 00905_ Lgt. Armor Plating destroyed. 00907_ U-05 Engineer destroyed. 00907_ K-01 Serf collects debris. 00907_ Aluminum Leg destroyed. 00909_ K-01 Serf destroyed. 00913_ as-24944 destroyed. Map ----- +----------------------------------------------------+ | | | | | | | | | | | | | | | | | | | | | | | | | | | | | ?????????????????????????????????????????????????? | | #???????????????????????????#######??????????????# | | #?###?????????????????????## ##????????????## | | ## ######??????????????## ############## | | ##??????????#### | | """ #?????????## | | """ #????????## ################# | | """ #???????## ## #???????????????? | | # ##?###### ### #???????????????? | | ?# ### ### ###########?????? | | ?# ## ##### !* ####### | | ?# ##!###### @ !%= """ | | ?## ! ! = !|#### """ ##### | | ??# ### ! a*%|=%##???# """ #???? | | ??????# ### ########## a%!#????# #???? | | ??# ### #?# #???????? #????## ## ##???? | | ??# =*=### #??????? #????##??# ####### | | ??##### /* #??????# #????#### | | #######%|#####?????? !% #????# ####### | | *[!=#?????????# =a ##???# """ #?????? | | #######=##?????????## ##????# """ #???### | | ??????# #???????????# ###?????# """ #??## | | ??????# #??????????? ##???????## #??# | | ??????# #??????????? a #?????????### #??# | | ?????? #?????????? ##???????????# ??# | | ??????###?????????? ????????????# < ??## | | ???????????????????? ???????????? ???# # | | ????????????????????? ????????????? ??# ? | | ??????????????????????????????????????? ###??# ? | | ???????????????????????????????????????###????? ?? | | ???????????????????????????????????????????????#?? | | ?????????????????????????????????????????????????? | | ?????????????????????????????????????????????????? | | ?????????????????????????????????????????????????? | | ?????????????????????????????????????????????????? | | ?????????????????????????????????????????????????? | +----------------------------------------------------+ Best States ------------- Heat Dissipation 25 Energy Generation 10 Energy Capacity 250 Matter Stores 300 Matter Capacity 300 Sight Range 16 Terrain Scan Density 10 Armor Coverage 150 Evasion (%) 55 Targeting Accuracy 5 Item Schematics ----------------- None Robot Schematics ------------------ None Fabricated ------------ Nothing Repaired ---------- Aluminum Leg | 42% | -10/Materials Alien Tech Used ----------------- None Achievements -------------- None Challenges ------------ None Game ------ Seed SurgeJammingTrident Manual? 0 Play Time 00:18:53 Cumulative 152.5 hours Start 2025.10.13 @ 02:16:26 End 2025.10.16 @ 22:43:58 Sessions 4 Manual Loads 0 Difficulty Rogue Special Mode None Game No. 49 Rogue 15 Adventurer 34 Explorer 0 Win Type - Total 2 Types 2/0/0/0/0/0/0/0/0/0 Lore% 28 Gallery% 47 Achievement% 49 Wizard Run 0 Options --------- Layout 2 ASCII 0 Keyboard 1 Movement Vi Keybinds 0 Fullscreen 2 Font 24/Terminus Map View 50x44 Zoom Use 9% Tactical HUD 1 Map Filters NONE Filters NONE Steam X RUN: b523056f-8fcf-4725-9d16-2d7b7fa6676d